Workbook

Sheet Proračun z 18 obdobji
B1: proračun podjetja
G2: ZAČETNI DATUM | H2: 2011-01-01 | I2: TRAJANJE OBDOBJA (V DNEVIH) | K2: 14 | L2: KONČNI DATUM | M2: =TEXT(T5,"dd.mm.yyyy") -> 26.08.2012
C5: =UPPER(TEXT(H2,"dd-mmm")) -> 01-JAN | D5: =UPPER(TEXT(C5+DnevniInterval,"dd-mmm")) -> 15-JAN | E5: 29-JAN | F5: 12-FEB | G5: 26-FEB | H5: 11-MAR | I5: 25-MAR | J5: 08-APR | K5: 22-APR | L5: 06-MAJ | M5: 20-MAJ | N5: 03-JUN | O5: 17-JUN | P5: 01-JUL | Q5: 15-JUL | R5: 29-JUL | S5: 12-AVG | T5: 26-AVG | U5: SKUPAJ | V5: TREND
B6: NETO PRIHODKI | C6: =TabelaDohodkov[[#Totals],[1. teden]]-TabelaStroškov[[#Totals],[1. teden]] -> 1,750.00 € | D6: =TabelaDohodkov[[#Totals],[2. teden]]-TabelaStroškov[[#Totals],[2. teden]] -> 2,236.00 € | E6: =TabelaDohodkov[[#Totals],[3. teden]]-TabelaStroškov[[#Totals],[3. teden]] -> 1,442.00 € | F6: =TabelaDohodkov[[#Totals],[4. teden]]-TabelaStroškov[[#Totals],[4. teden]] -> 2,253.00 € | G6: =TabelaDohodkov[[#Totals],[5. teden]]-TabelaStroškov[[#Totals],[5. teden]] -> 1,533.00 € | H6: =TabelaDohodkov[[#Totals],[6. teden]]-TabelaStroškov[[#Totals],[6. teden]] -> 1,086.00 € | I6: =TabelaDohodkov[[#Totals],[7. teden]]-TabelaStroškov[[#Totals],[7. teden]] -> 1,594.00 € | J6: =TabelaDohodkov[[#Totals],[8. teden]]-TabelaStroškov[[#Totals],[8. teden]] -> 0 | K6: =TabelaDohodkov[[#Totals],[9. teden]]-TabelaStroškov[[#Totals],[9. teden]] -> 0 | L6: =TabelaDohodkov[[#Totals],[10. teden]]-TabelaStroškov[[#Totals],[10. teden]] -> 0 | M6: =TabelaDohodkov[[#Totals],[11. teden]]-TabelaStroškov[[#Totals],[11. teden]] -> 0 | N6: =TabelaDohodkov[[#Totals],[12. teden]]-TabelaStroškov[[#Totals],[12. teden]] -> 0 | O6: =TabelaDohodkov[[#Totals],[13. teden]]-TabelaStroškov[[#Totals],[13. teden]] -> 0 | P6: =TabelaDohodkov[[#Totals],[14. teden]]-TabelaStroškov[[#Totals],[14. teden]] -> 0 | Q6: =TabelaDohodkov[[#Totals],[15. teden]]-TabelaStroškov[[#Totals],[15. teden]] -> 0 | R6: =TabelaDohodkov[[#Totals],[16. teden]]-TabelaStroškov[[#Totals],[16. teden]] -> 0 | S6: =TabelaDohodkov[[#Totals],[17. teden]]-TabelaStroškov[[#Totals],[17. teden]] -> 0 | T6: =TabelaDohodkov[[#Totals],[18. teden]]-TabelaStroškov[[#Totals],[18. teden]] -> 0 | U6: =TabelaDohodkov[[#Totals],[Skupaj]]-TabelaStroškov[[#Totals],[Skupaj]] -> 11,894.00 €
A8: prihodek
B9: ELEMENT PRIHODKOV 1 | C9: 3,000.00 € | D9: 3,500.00 € | E9: 2,978.00 € | F9: 3,384.00 € | G9: 2,858.00 € | H9: 2,809.00 € | I9: 3,220.00 € | U9: =SUM(TabelaDohodkov[[#This Row],[1. teden]:[18. teden]]) -> 21,749.00 €
B10: ELEMENT PRIHODKOV 2 | C10: 1,150.00 | D10: 1,200.00 | E10: 1,144.00 | F10: 1,400.00 | G10: 1,358.00 | H10: 1,154.00 | I10: 1,245.00 | U10: =SUM(TabelaDohodkov[[#This Row],[1. teden]:[18. teden]]) -> 8,651.00
B11: ELEMENT PRIHODKOV 3 | C11: 300.00 | D11: 350.00 | E11: 392.00 | F11: 326.00 | G11: 381.00 | H11: 364.00 | I11: 315.00 | U11: =SUM(TabelaDohodkov[[#This Row],[1. teden]:[18. teden]]) -> 2,428.00
B12: SKUPNI PRIHODKI | C12: =SUBTOTAL(109,TabelaDohodkov[1. teden]) -> 4,450.00 € | D12: =SUBTOTAL(109,TabelaDohodkov[2. teden]) -> 5,050.00 € | E12: =SUBTOTAL(109,TabelaDohodkov[3. teden]) -> 4,514.00 € | F12: =SUBTOTAL(109,TabelaDohodkov[4. teden]) -> 5,110.00 € | G12: =SUBTOTAL(109,TabelaDohodkov[5. teden]) -> 4,597.00 € | H12: =SUBTOTAL(109,TabelaDohodkov[6. teden]) -> 4,327.00 € | I12: =SUBTOTAL(109,TabelaDohodkov[7. teden]) -> 4,780.00 € | J12: =SUBTOTAL(109,TabelaDohodkov[8. teden]) -> 0 | K12: =SUBTOTAL(109,TabelaDohodkov[9. teden]) -> 0 | L12: =SUBTOTAL(109,TabelaDohodkov[10. teden]) -> 0 | M12: =SUBTOTAL(109,TabelaDohodkov[11. teden]) -> 0 | N12: =SUBTOTAL(109,TabelaDohodkov[12. teden]) -> 0 | O12: =SUBTOTAL(109,TabelaDohodkov[13. teden]) -> 0 | P12: =SUBTOTAL(109,TabelaDohodkov[14. teden]) -> 0 | Q12: =SUBTOTAL(109,TabelaDohodkov[15. teden]) -> 0 | R12: =SUBTOTAL(109,TabelaDohodkov[16. teden]) -> 0 | S12: =SUBTOTAL(109,TabelaDohodkov[17. teden]) -> 0 | T12: =SUBTOTAL(109,TabelaDohodkov[18. teden]) -> 0 | U12: =SUBTOTAL(109,TabelaDohodkov[Skupaj]) -> 32,828.00 €
A14: stroški
B15: PLAČE | C15: 1,500.00 € | D15: 1,577.00 € | E15: 1,823.00 € | F15: 1,529.00 € | G15: 1,759.00 € | H15: 1,947.00 € | I15: 1,875.00 € | U15: =SUM(TabelaStroškov[[#This Row],[1. teden]:[18. teden]]) -> 12,010.00 €
B16: NAJEMNINA | C16: 1,000.00 | D16: 1,000.00 | E16: 1,000.00 | F16: 1,000.00 | G16: 1,000.00 | H16: 1,000.00 | I16: 1,000.00 | U16: =SUM(TabelaStroškov[[#This Row],[1. teden]:[18. teden]]) -> 7,000.00
B17: ELEKTRIKA | C17: 40.00 | D17: 43.00 | E17: 40.00 | F17: 42.00 | G17: 45.00 | H17: 40.00 | I17: 42.00 | U17: =SUM(TabelaStroškov[[#This Row],[1. teden]:[18. teden]]) -> 292.00
B18: TELEFON | C18: 12.00 | D18: 11.00 | E18: 13.00 | F18: 14.00 | G18: 11.00 | H18: 15.00 | I18: 15.00 | U18: =SUM(TabelaStroškov[[#This Row],[1. teden]:[18. teden]]) -> 91.00
B19: INTERNET | C19: 15.00 | D19: 15.00 | E19: 15.00 | F19: 15.00 | G19: 15.00 | H19: 15.00 | I19: 15.00 | U19: =SUM(TabelaStroškov[[#This Row],[1. teden]:[18. teden]]) -> 105.00
B20: VODA | C20: 11.00 | D20: 10.00 | E20: 13.00 | F20: 10.00 | G20: 13.00 | H20: 10.00 | I20: 12.00 | U20: =SUM(TabelaStroškov[[#This Row],[1. teden]:[18. teden]]) -> 79.00
B21: PLIN | C21: 23.00 | D21: 27.00 | E21: 26.00 | F21: 27.00 | G21: 22.00 | H21: 29.00 | I21: 21.00 | U21: =SUM(TabelaStroškov[[#This Row],[1. teden]:[18. teden]]) -> 175.00
B22: KOMUNALNE STORITVE | C22: 4.00 | D22: 4.00 | E22: 4.00 | F22: 4.00 | G22: 4.00 | H22: 4.00 | I22: 4.00 | U22: =SUM(TabelaStroškov[[#This Row],[1. teden]:[18. teden]]) -> 28.00
B23: KABELSKA TV | C23: 10.00 | D23: 10.00 | E23: 10.00 | F23: 10.00 | G23: 10.00 | H23: 10.00 | I23: 10.00 | U23: =SUM(TabelaStroškov[[#This Row],[1. teden]:[18. teden]]) -> 70.00
B24: PISARNIŠKE POTREBŠČINE | C24: 25.00 | D24: 57.00 | E24: 68.00 | F24: 146.00 | G24: 125.00 | H24: 111.00 | I24: 132.00 | U24: =SUM(TabelaStroškov[[#This Row],[1. teden]:[18. teden]]) -> 664.00
B25: ZAVAROVANJE | C25: 60.00 | D25: 60.00 | E25: 60.00 | F25: 60.00 | G25: 60.00 | H25: 60.00 | I25: 60.00 | U25: =SUM(TabelaStroškov[[#This Row],[1. teden]:[18. teden]]) -> 420.00
B26: SKUPAJ STROŠKI | C26: =SUBTOTAL(109,TabelaStroškov[1. teden]) -> 2,700.00 € | D26: =SUBTOTAL(109,TabelaStroškov[2. teden]) -> 2,814.00 € | E26: =SUBTOTAL(109,TabelaStroškov[3. teden]) -> 3,072.00 € | F26: =SUBTOTAL(109,TabelaStroškov[4. teden]) -> 2,857.00 € | G26: =SUBTOTAL(109,TabelaStroškov[5. teden]) -> 3,064.00 € | H26: =SUBTOTAL(109,TabelaStroškov[6. teden]) -> 3,241.00 € | I26: =SUBTOTAL(109,TabelaStroškov[7. teden]) -> 3,186.00 € | J26: =SUBTOTAL(109,TabelaStroškov[8. teden]) -> 0 | K26: =SUBTOTAL(109,TabelaStroškov[9. teden]) -> 0 | L26: =SUBTOTAL(109,TabelaStroškov[10. teden]) -> 0 | M26: =SUBTOTAL(109,TabelaStroškov[11. teden]) -> 0 | N26: =SUBTOTAL(109,TabelaStroškov[12. teden]) -> 0 | O26: =SUBTOTAL(109,TabelaStroškov[13. teden]) -> 0 | P26: =SUBTOTAL(109,TabelaStroškov[14. teden]) -> 0 | Q26: =SUBTOTAL(109,TabelaStroškov[15. teden]) -> 0 | R26: =SUBTOTAL(109,TabelaStroškov[16. teden]) -> 0 | S26: =SUBTOTAL(109,TabelaStroškov[17. teden]) -> 0 | T26: =SUBTOTAL(109,TabelaStroškov[18. teden]) -> 0 | U26: =SUBTOTAL(109,TabelaStroškov[Skupaj]) -> 20,934.00 €
